bitfinex-derivatives/quotes_BTCF0:USTF0_20250527
["timestamp","ask_amount","ask_price","bid_price","bid_amount"]
[1748374756273,0.0328001,109870.0,109860.0,1.46343231]
[1748374756869,0.0328001,109870.0,109860.0,1.52713231]
[1748374757475,0.0328001,109870.0,109860.0,1.42309231]
[1748374757779,0.0328001,109870.0,109860.0,1.52713231]
[1748374758168,0.0328001,109870.0,109860.0,1.55330036]
[1748374759373,0.0328001,109870.0,109860.0,1.56227674]
[1748374760378,0.0328001,109870.0,109860.0,1.4188728]
[1748374760563,0.0328001,109870.0,109860.0,1.5228728]
[1748374760771,0.0644001,109870.0,109860.0,1.56211674]
[1748374761172,0.0644001,109870.0,109860.0,1.56223674]
[1748374761983,0.0644001,109870.0,109860.0,1.30636088]
[1748374762468,0.0644001,109870.0,109860.0,1.26699694]
[1748374762675,0.0010001,109870.0,109860.0,1.5222728]
[1748374762983,0.0010001,109870.0,109860.0,1.56163674]
[1748374763174,0.0010001,109870.0,109860.0,1.45823674]
[1748374763374,0.0010001,109870.0,109860.0,1.56163674]
[1748374763774,1e-07,109870.0,109860.0,1.56163674]
[1748374764285,1e-07,109870.0,109860.0,1.53546869]
[1748374764674,1e-07,109870.0,109860.0,1.56165973]
[1748374765280,1e-07,109870.0,109860.0,1.53546869]
[1748374766494,0.00442241,109870.0,109860.0,1.53546869]
[1748374767586,0.00442241,109870.0,109860.0,1.53542869]
[1748374767782,0.03612241,109870.0,109860.0,1.53542869]
[1748374767972,0.06722241,109870.0,109860.0,1.53542869]
[1748374769084,0.00112,109880.0,109870.0,0.1819439]
[1748374769285,0.00112,109880.0,109870.0,1.50905731]
[1748374769478,0.00112,109880.0,109870.0,1.4828437]
[1748374770281,0.00112,109880.0,109870.0,1.3814837]
[1748374770585,0.00112,109880.0,109870.0,1.25577948]
[1748374770790,0.03322,109880.0,109870.0,1.40569534]
[1748374771086,0.03322,109880.0,109870.0,1.51017534]
[1748374771290,0.03322,109880.0,109870.0,1.51217534]
[1748374772189,0.03322,109880.0,109870.0,1.51017534]
[1748374772597,0.03322,109880.0,109870.0,1.4839637]
[1748374773391,0.00112,109880.0,109870.0,1.4839637]
[1748374774696,0.00554231,109880.0,109870.0,1.44459976]
[1748374774889,0.00554231,109880.0,109870.0,1.49728766]
[1748374775996,0.00554231,109880.0,109870.0,1.49092701]
[1748374776490,0.1029,109900.0,109890.0,0.1819108]
[1748374776790,0.1029,109900.0,109890.0,1.75516776]
[1748374776983,0.1029,109900.0,109890.0,1.71700776]
[1748374777182,0.16602,109900.0,109890.0,1.71700776]
[1748374777899,0.16602,109900.0,109890.0,1.72326955]
[1748374778080,0.16602,109900.0,109890.0,1.6848878]
[1748374778391,0.16602,109900.0,109890.0,1.48222522]
[1748374778585,0.16602,109900.0,109890.0,1.73740222]
[1748374779394,0.16602,109900.0,109890.0,1.40740222]
[1748374780187,0.16602,109900.0,109890.0,1.15222522]
[1748374780795,0.16192,109900.0,109890.0,1.15222522]
[1748374781188,0.16192,109900.0,109890.0,1.42090236]
[1748374781895,0.09892,109900.0,109890.0,1.42090236]
[1748374782195,0.001,109920.0,109910.0,0.1818777]
[1748374782395,0.0319,109920.0,109910.0,1.42449398]
[1748374782701,0.03202,109920.0,109910.0,1.42449664]
[1748374782996,0.03202,109920.0,109910.0,1.3716547]
[1748374782997,0.06452,109920.0,109910.0,1.3716547]
[1748374783199,0.2463812,109920.0,109910.0,1.38088598]
[1748374783496,0.2463812,109920.0,109910.0,0.41483638]
[1748374783705,0.6739012,109920.0,109910.0,0.77663638]
[1748374784500,0.6739012,109920.0,109910.0,0.77675638]
[1748374784904,0.6739012,109920.0,109910.0,0.76675638]
[1748374785195,0.49204,109920.0,109910.0,0.76675638]
[1748374785395,0.49168,109920.0,109910.0,0.76675638]
[1748374785599,0.6736612,109920.0,109910.0,0.76675638]
[1748374785802,0.7136212,109920.0,109910.0,0.76663638]
[1748374786102,0.7136212,109920.0,109910.0,0.76675638]
[1748374786403,0.7135812,109920.0,109910.0,0.76675638]
[1748374787899,0.7135812,109920.0,109910.0,0.76663638]
[1748374788098,0.7135812,109920.0,109910.0,0.76675638]
[1748374788505,0.6735812,109920.0,109910.0,0.76675638]
[1748374789603,0.6835812,109920.0,109910.0,0.76675638]
[1748374789904,0.68800351,109920.0,109910.0,0.76675638]
[1748374790292,0.98800351,109920.0,109910.0,0.76675638]
[1748374790488,0.52830351,109920.0,109910.0,0.76675638]
[1748374790795,0.76506351,109920.0,109910.0,0.79915638]
[1748374791002,0.79816351,109920.0,109910.0,0.79915638]
[1748374791297,0.18942231,109920.0,109910.0,1.05433338]
[1748374791498,0.06942231,109920.0,109910.0,1.06433338]
[1748374791699,0.03644231,109920.0,109910.0,1.06433338]
[1748374791915,0.03632231,109920.0,109910.0,1.0114747]
[1748374792105,0.03632231,109920.0,109910.0,1.07748926]
[1748374792106,0.03644231,109920.0,109910.0,1.07748926]
[1748374792605,0.00554231,109920.0,109910.0,1.07748926]
[1748374794403,0.00554231,109920.0,109910.0,1.28748926]
[1748374796104,0.00554231,109920.0,109910.0,1.38972926]
[1748374796305,0.00114267,109930.0,109920.0,0.1818611]
[1748374796495,0.00114267,109930.0,109920.0,1.0319381]
[1748374796701,0.00084267,109930.0,109920.0,1.4019381]
[1748374796896,0.00084267,109930.0,109920.0,1.46795266]
[1748374797397,0.00184267,109930.0,109920.0,1.46795266]
[1748374797599,0.00196267,109930.0,109920.0,1.46795266]
[1748374798099,0.06456267,109950.0,109940.0,0.1818281]
[1748374798305,0.42456267,109950.0,109940.0,0.71222307]
[1748374798503,0.42456267,109950.0,109940.0,0.80492307]
[1748374798695,0.42456267,109950.0,109940.0,0.7653281]
[1748374799308,0.85420267,109950.0,109940.0,0.77865963]
[1748374799509,0.85720267,109950.0,109940.0,0.77865963]
[1748374800007,1.03901417,109950.0,109940.0,0.77865963]
[1748374800202,1.04113417,109950.0,109940.0,0.77865963]
[1748374800707,1.04113417,109950.0,109940.0,0.77877963]
[1748374801614,1.6514081,109950.0,109940.0,0.20595153]
[1748374801813,1.6514081,109950.0,109940.0,0.3647415]
[1748374802010,1.6514081,109950.0,109940.0,0.3648615]
[1748374802318,1.99236411,109950.0,109940.0,0.05951153]
[1748374802618,1.99236411,109950.0,109940.0,0.24145963]
[1748374803511,1.99240411,109950.0,109940.0,0.24145963]
[1748374803810,1.99228411,109950.0,109940.0,0.24133963]
[1748374804117,2.00996862,109950.0,109940.0,0.24133963]
[1748374804514,2.00996862,109950.0,109940.0,0.22154699]
[1748374804708,1.57948862,109950.0,109940.0,0.2421897]
[1748374804922,2.00984862,109950.0,109940.0,0.22238699]
[1748374805218,1.76427093,109950.0,109940.0,0.22238699]
[1748374807317,1.76427093,109950.0,109940.0,0.04055889]
[1748374807518,1.33391093,109950.0,109940.0,0.22238699]
[1748374807713,1.76383093,109950.0,109940.0,0.26196886]
[1748374807915,1.76383093,109950.0,109940.0,0.08014076]
[1748374808719,1.75254526,109950.0,109940.0,0.07930076]
[1748374809115,1.75254526,109950.0,109940.0,0.08014076]
[1748374809718,1.76383093,109950.0,109940.0,0.08014076]
[1748374813715,1.75254526,109950.0,109940.0,0.07930076]
[1748374814120,1.75254526,109950.0,109940.0,0.08014076]
[1748374814823,1.76383093,109950.0,109940.0,0.08014076]
[1748374815321,1.76383093,109950.0,109940.0,0.26196886]
[1748374815523,1.76383093,109950.0,109940.0,0.08014076]
[1748374815723,1.76383093,109950.0,109940.0,0.11064076]
[1748374816615,1.67287492,109950.0,109940.0,0.11064076]
[1748374817205,1.67183492,109950.0,109940.0,0.11064076]
[1748374817410,1.24295492,109950.0,109940.0,0.29246886]
[1748374817611,1.09012215,109950.0,109940.0,0.3381815]
[1748374817812,1.77407492,109950.0,109940.0,0.3062815]
[1748374818228,1.77407492,109950.0,109940.0,0.0537534]
[1748374818525,1.77407492,109950.0,109940.0,0.0538734]
[1748374818713,1.76278925,109950.0,109940.0,0.07936994]
[1748374819023,1.76278925,109950.0,109940.0,0.0529134]
[1748374819222,1.77407492,109950.0,109940.0,0.1561534]
[1748374819822,1.24295492,109950.0,109940.0,0.1561534]
[1748374820022,1.77479492,109950.0,109940.0,0.1561534]
[1748374821823,1.77451492,109950.0,109940.0,0.3379815]
[1748374822026,1.51944215,109950.0,109940.0,0.3379815]
[1748374822209,1.77451492,109950.0,109940.0,0.1561534]
[1748374823018,1.24295492,109950.0,109940.0,0.3379815]
[1748374823221,1.77551492,109950.0,109940.0,0.3379815]
[1748374823628,1.76422925,109950.0,109940.0,0.3379815]
[1748374823920,1.76410925,109950.0,109940.0,0.3379815]
[1748374824222,1.76410925,109950.0,109940.0,0.3698415]
[1748374824816,1.77539492,109950.0,109940.0,0.3706815]
[1748374825123,1.52036215,109950.0,109940.0,0.3706815]
[1748374825914,1.7690498,109950.0,109940.0,0.3706815]
[1748374828721,1.75776413,109950.0,109940.0,0.3698415]
[1748374829123,1.7690498,109950.0,109940.0,0.3698415]
[1748374829825,1.7690498,109950.0,109940.0,0.3706815]
[1748374830323,1.7690498,109950.0,109940.0,0.1888534]
[1748374830533,1.7685298,109950.0,109940.0,0.3706815]
[1748374831029,1.51984215,109950.0,109940.0,0.3706815]
[1748374831228,1.7685298,109950.0,109940.0,0.3706815]
[1748374833232,1.7685298,109950.0,109940.0,0.33109963]
[1748374833626,1.75724413,109950.0,109940.0,0.33109963]
[1748374833928,1.75724413,109950.0,109940.0,0.14843153]
[1748374834123,1.75724413,109950.0,109940.0,0.18817304]
[1748374834325,1.7685298,109950.0,109940.0,0.37084114]
[1748374835326,1.51984215,109950.0,109940.0,0.37084114]
[1748374835529,1.7685298,109950.0,109940.0,0.33109963]
[1748374836437,1.7685298,109950.0,109940.0,0.14927153]
[1748374837139,1.7685298,109950.0,109940.0,0.33109963]
[1748374837637,1.7685298,109950.0,109940.0,0.14927153]
[1748374838736,1.75724413,109950.0,109940.0,0.14843153]
[1748374839227,1.7685298,109950.0,109940.0,0.08631526]
[1748374839423,1.7685298,109950.0,109940.0,0.08643526]
[1748374840432,1.7685298,109950.0,109940.0,0.07310373]
[1748374840736,1.7685298,109950.0,109940.0,0.10390373]
[1748374841639,1.7685298,109950.0,109940.0,0.28573183]
[1748374842728,1.7685298,109950.0,109940.0,0.10390373]
[1748374843642,1.75724413,109950.0,109940.0,0.10378373]
[1748374843840,1.75724413,109950.0,109940.0,0.10294373]
[1748374844342,1.7685298,109950.0,109940.0,0.10378373]
[1748374846137,1.3400098,109950.0,109940.0,0.28561183]
[1748374846338,1.7673698,109950.0,109940.0,0.28561183]
[1748374846636,1.78108323,109950.0,109940.0,0.28561183]
[1748374846941,1.78108323,109950.0,109940.0,0.10378373]
[1748374848740,1.76979756,109950.0,109940.0,0.10294373]
[1748374849344,1.76979756,109950.0,109940.0,0.10378373]
[1748374849840,1.78108323,109950.0,109940.0,0.10378373]
[1748374851037,1.78108323,109950.0,109940.0,0.07298373]
[1748374852031,1.53239558,109950.0,109940.0,0.07298373]
[1748374852342,1.78108323,109950.0,109940.0,0.07298373]
[1748374853644,1.76979756,109950.0,109940.0,0.07214373]
[1748374854344,1.78108323,109950.0,109940.0,0.07298373]
[1748374858331,1.78136323,109950.0,109940.0,0.07298373]
[1748374858653,1.77007756,109950.0,109940.0,0.07298373]
[1748374859040,1.76951756,109950.0,109940.0,0.07298373]
[1748374859247,1.76951756,109950.0,109940.0,0.07214373]
[1748374859746,1.78080323,109950.0,109940.0,0.10308373]
[1748374863746,1.76951756,109950.0,109940.0,0.10224373]
[1748374864247,1.76951756,109950.0,109940.0,0.10308373]
[1748374864449,1.78080323,109950.0,109940.0,0.10308373]
[1748374866148,1.71864189,109950.0,109940.0,0.10308373]
[1748374866340,1.71864189,109950.0,109940.0,0.06334]
[1748374866543,1.71864189,109950.0,109940.0,0.10307745]
[1748374868646,1.70735622,109950.0,109940.0,0.10223745]
[1748374869155,1.71864189,109950.0,109940.0,0.10307745]
[1748374873453,1.29108189,109950.0,109940.0,0.10307745]
[1748374873653,1.70575622,109950.0,109940.0,0.10223745]
[1748374873854,0.1818281,109940.0,109930.0,0.32087426]
[1748374874052,0.74045441,109940.0,109930.0,0.44087426]
[1748374874755,1.10125441,109940.0,109930.0,0.44171426]
[1748374875148,1.10225441,109940.0,109930.0,0.44171426]
[1748374875453,0.74145441,109940.0,109930.0,0.44171426]
[1748374875856,1.10225441,109940.0,109930.0,0.44171426]
[1748374877344,1.10225441,109940.0,109930.0,0.50581426]
[1748374877656,0.74145441,109940.0,109930.0,0.50581426]
[1748374877957,1.10225441,109940.0,109930.0,0.50581426]
[1748374878149,1.20521441,109940.0,109930.0,0.50581426]
[1748374878553,1.17441441,109940.0,109930.0,0.50581426]
[1748374878754,1.17441441,109940.0,109930.0,0.50497426]
[1748374879153,1.18570008,109940.0,109930.0,0.50581426]
[1748374879354,0.72194008,109940.0,109930.0,0.86661426]
[1748374879660,0.92951377,109940.0,109930.0,1.05314057]
[1748374879853,0.92963377,109940.0,109930.0,1.11915513]
[1748374880247,0.32682798,109940.0,109930.0,1.11915513]
[1748374880446,0.93393688,109940.0,109930.0,1.11915513]
[1748374880644,0.93405688,109940.0,109930.0,1.11915513]
[1748374881160,0.75222798,109940.0,109930.0,1.11915513]
[1748374881356,0.93405688,109940.0,109930.0,1.11915513]
[1748374883060,0.50865688,109940.0,109930.0,1.11915513]
[1748374883359,0.32682798,109940.0,109930.0,1.65664544]
[1748374883567,0.261654,109960.0,109950.0,0.1818124]
[1748374883568,0.4283,109960.0,109950.0,0.1818124]
[1748374883859,0.00236469,109980.0,109970.0,0.1817794]
[1748374884049,0.13236469,109980.0,109970.0,1.00426571]
[1748374884251,0.42776469,109980.0,109970.0,1.03586571]
[1748374884657,0.42776469,109980.0,109970.0,1.04493742]
[1748374885060,0.42776469,109980.0,109970.0,1.04589742]
[1748374885267,0.00248469,109980.0,109970.0,1.24242373]
[1748374885567,0.00248469,109980.0,109970.0,1.05589742]
[1748374885952,0.00248469,109980.0,109970.0,1.11777749]
[1748374886154,0.00248469,109980.0,109970.0,1.20970549]
[1748374886469,0.60907599,109990.0,109980.0,0.1817629]
[1748374886655,0.95907599,109990.0,109980.0,1.00927912]
[1748374886964,0.53363599,109990.0,109980.0,1.04047912]
[1748374887266,0.95899599,109990.0,109980.0,1.04047912]
[1748374887859,0.77724469,109990.0,109980.0,1.04047912]
[1748374888055,0.95899099,109990.0,109980.0,1.04047912]
[1748374888356,0.95899099,109990.0,109980.0,1.05047912]
[1748374888662,0.95899099,109990.0,109980.0,0.80207274]
[1748374888663,0.95895099,109990.0,109980.0,0.80207274]
[1748374888963,0.95895099,109990.0,109980.0,1.05047912]
[1748374889265,0.101,110000.0,109990.0,0.1817463]
[1748374889482,0.6327298,110000.0,109990.0,1.07523268]
[1748374890962,0.2827298,110000.0,109990.0,1.07523268]
[1748374891769,0.101,110000.0,109990.0,1.07623268]
[1748374892068,0.10112,110000.0,109990.0,1.07623268]
[1748374892265,0.10112,110000.0,109990.0,1.10245887]
[1748374892666,0.10112,110000.0,109990.0,0.85405249]
[1748374892969,0.101,110000.0,109990.0,0.86405249]
[1748374893276,0.10112,110000.0,109990.0,1.21505249]
[1748374893870,0.10112,110000.0,109990.0,1.25437975]
[1748374894373,0.10554231,110000.0,109990.0,1.25437975]
[1748374894570,0.10554231,110000.0,109990.0,1.84369813]
[1748374894866,0.10542231,110000.0,109990.0,1.81747194]
[1748374895066,0.1845959,110020.0,110010.0,0.1817124]
[1748374895273,0.45300228,110020.0,110010.0,0.79017828]
[1748374895469,0.45300228,110020.0,110010.0,0.85467828]
[1748374895663,0.2047159,110020.0,110010.0,0.85467828]
[1748374895859,0.2352159,110020.0,110010.0,0.75319828]
[1748374896077,0.49642228,110020.0,110010.0,0.75319828]
[1748374896264,1.63242228,110020.0,110010.0,0.17868588]
[1748374896569,1.27162228,110020.0,110010.0,0.35396504]
[1748374896869,1.27362228,110020.0,110010.0,0.35384504]
[1748374897068,0.84842228,110020.0,110010.0,0.35396504]
[1748374897276,1.27362228,110020.0,110010.0,0.35396504]
[1748374897478,0.84842228,110020.0,110010.0,0.35396504]
[1748374897663,1.27162228,110020.0,110010.0,0.38596504]
[1748374897864,0.84642228,110020.0,110010.0,0.13975154]
[1748374898162,0.84642228,110020.0,110010.0,0.12012]
[1748374898163,1.63238228,110020.0,110010.0,0.12012]
[1748374898472,1.63238228,110020.0,110010.0,0.3017138]
[1748374898658,1.63238228,110020.0,110010.0,0.12012]
[1748374900164,1.63238228,110020.0,110010.0,0.3018338]
[1748374900370,1.63238228,110020.0,110010.0,0.12012]
[1748374901075,1.63238228,110020.0,110010.0,0.3018338]
[1748374901272,1.63238228,110020.0,110010.0,0.12012]
[1748374904175,1.63238228,110020.0,110010.0,0.3018338]
[1748374904176,0.9588159,110020.0,110010.0,0.3018338]
[1748374904379,1.63234228,110020.0,110010.0,0.12012]
[1748374904881,1.63234228,110020.0,110010.0,0.12]
[1748374905079,1.63234228,110020.0,110010.0,0.3018338]
[1748374906966,1.27154228,110020.0,110010.0,0.3018338]
[1748374907173,1.27154228,110020.0,110010.0,0.32150359]
[1748374908075,1.63234228,110020.0,110010.0,0.32150359]
[1748374908967,1.63234228,110020.0,110010.0,0.13978979]
[1748374909375,0.1817138,110010.0,110000.0,0.77042124]
[1748374909576,0.84472018,110010.0,110000.0,0.34695624]
[1748374909776,1.20552018,110010.0,110000.0,0.12546673]
[1748374909972,1.20552018,110010.0,110000.0,0.08618588]
[1748374910165,1.20552018,110010.0,110000.0,0.08630588]
[1748374910364,1.20552018,110010.0,110000.0,0.26791618]
[1748374910670,1.20552018,110010.0,110000.0,0.26903618]
[1748374911276,1.20852018,110010.0,110000.0,0.30831703]
[1748374911680,1.56932018,110010.0,110000.0,0.30831703]
[1748374912574,1.57232018,110010.0,110000.0,0.28113115]
[1748374913186,1.57232018,110010.0,110000.0,0.29445078]
[1748374915075,1.21152018,110010.0,110000.0,0.32705078]
[1748374915281,0.85072018,110010.0,110000.0,0.32705078]
[1748374915589,1.27580018,110010.0,110000.0,0.32705078]
[1748374916182,1.63660018,110010.0,110000.0,0.32705078]
[1748374916781,1.63560018,110010.0,110000.0,0.32705078]
[1748374916972,1.63560018,110010.0,110000.0,0.08532048]
[1748374917175,1.63460018,110010.0,110000.0,0.31705078]
[1748374917372,0.6848,110010.0,110000.0,0.31705078]
[1748374917577,0.08714801,110050.0,110040.0,0.1816643]
[1748374917775,0.05669517,110060.0,110050.0,0.1816477]
[1748374917991,0.49941862,110070.0,110050.0,1.02189372]
[1748374918194,0.17428,110060.0,110050.0,0.87594636]
[1748374918495,0.59268638,110060.0,110050.0,0.97679106]
[1748374918682,0.77268638,110060.0,110050.0,0.94479106]
[1748374918990,0.95431768,110060.0,110050.0,0.91793199]
[1748374919180,0.95431768,110060.0,110050.0,0.20437771]
[1748374919388,1.39687768,110060.0,110050.0,0.52569597]
[1748374919890,1.39787768,110060.0,110050.0,0.56517771]
[1748374920275,0.5968313,110060.0,110050.0,0.74682551]
[1748374920488,0.4152,110060.0,110050.0,0.72049983]
[1748374920673,1.21588638,110060.0,110050.0,0.72049983]
[1748374920878,1.21588638,110060.0,110050.0,0.74680717]
[1748374921085,1.21688638,110060.0,110050.0,0.74680717]
[1748374921283,0.4162,110060.0,110050.0,0.74680717]
[1748374921492,0.4162,110060.0,110050.0,0.72049983]
[1748374921788,0.4162,110060.0,110050.0,0.75469983]
[1748374921789,0.96724,110060.0,110050.0,0.75469983]
[1748374921991,0.96724,110060.0,110050.0,0.78509983]
[1748374921992,0.96736,110060.0,110050.0,0.78509983]
[1748374922190,0.41532,110060.0,110050.0,0.79900563]
[1748374922392,0.0332,110060.0,110050.0,0.75952389]
[1748374922586,0.44296,110060.0,110050.0,0.75952389]
[1748374922895,0.001,110060.0,110050.0,1.00793027]
[1748374923089,0.44288,110060.0,110050.0,1.00893027]
[1748374923386,0.44188,110060.0,110050.0,0.76248127]
[1748374923976,0.00012,110060.0,110050.0,0.76248127]
[1748374924190,0.44164,110060.0,110050.0,0.76248127]
[1748374924392,0.00012,110060.0,110050.0,1.01088765]
[1748374924588,0.0302,110090.0,110080.0,0.1815983]
[1748374924782,0.0302,110090.0,110080.0,0.68092597]
[1748374924783,0.83232,110090.0,110080.0,0.68092597]
[1748374924987,0.83232,110090.0,110080.0,0.77254913]
[1748374925293,0.83244,110090.0,110080.0,0.81188589]
[1748374925474,0.00012,110090.0,110080.0,1.03406911]
[1748374925674,0.00012,110090.0,110080.0,0.74632597]
[1748374925883,0.05,110090.0,110080.0,0.74832597]
[1748374926084,0.492,110090.0,110080.0,0.78760376]
[1748374926289,0.37960638,110100.0,110090.0,0.1815818]
[1748374926593,0.963,110100.0,110090.0,0.73769017]
[1748374926785,1.1445653,110100.0,110090.0,0.73769017]
[1748374927695,1.1445653,110100.0,110090.0,0.73761398]
[1748374927884,0.7027653,110100.0,110090.0,0.73761398]
[1748374928079,1.1441653,110100.0,110090.0,0.73761398]
[1748374928501,1.39257168,110100.0,110090.0,0.73761398]
[1748374928788,1.39257168,110100.0,110090.0,0.50125148]
[1748374928992,0.95117168,110100.0,110090.0,0.50125148]
[1748374929295,1.50229168,110100.0,110090.0,0.4848]
[1748374929690,1.50229168,110100.0,110090.0,0.004]
[1748374930284,1.59312368,110100.0,110090.0,0.004]
[1748374933102,1.59240368,110100.0,110090.0,0.004]
[1748374934205,1.3439973,110100.0,110090.0,0.004]
[1748374934394,1.59240368,110100.0,110090.0,0.004]
[1748374935995,1.95320368,110100.0,110090.0,0.004]
[1748374937598,1.95320368,110100.0,110070.0,0.36093626]
[1748374937599,0.1815983,110080.0,110070.0,0.36093626]
[1748374937896,1.29936468,110080.0,110070.0,0.4593811]
[1748374938090,1.36226468,110080.0,110070.0,0.4593811]
[1748374938801,1.36226468,110080.0,110070.0,0.4643811]
[1748374939001,1.36226468,110080.0,110070.0,0.4683811]
[1748374939205,1.36226468,110080.0,110070.0,0.4988811]
[1748374940190,1.61509337,110080.0,110070.0,0.4683811]
[1748374940398,1.61509337,110080.0,110070.0,0.004]
[1748374940587,1.61509337,110080.0,110050.0,0.01526881]
[1748374940588,0.1816313,110060.0,110050.0,0.01526881]
[1748374940789,1.67955768,110060.0,110050.0,0.03526881]
[1748374940984,1.74245768,110060.0,110050.0,0.03526881]
[1748374941396,1.74245768,110060.0,110050.0,0.02136301]
[1748374941897,1.74245768,110060.0,110050.0,0.02336301]
[1748374942092,1.74245768,110060.0,110050.0,0.02436301]
[1748374942487,1.38165768,110060.0,110050.0,0.02436301]
[1748374942999,1.74245768,110060.0,110050.0,0.02436301]
[1748374943588,1.4940513,110060.0,110050.0,0.00436301]
[1748374943785,1.74245768,110060.0,110050.0,0.00436301]
[1748374945002,1.74245768,110060.0,110050.0,0.01436301]
[1748374947392,1.74245768,110060.0,110050.0,0.013]
[1748374947596,1.74245768,110060.0,110050.0,0.003]
[1748374950500,1.83332168,110060.0,110050.0,0.003]
[1748374952703,1.83332168,110060.0,110050.0,0.02146703]
[1748374954293,1.39460168,110060.0,110050.0,0.02146703]
[1748374954602,1.73953768,110060.0,110050.0,0.02146703]
[1748374955104,1.73953768,110060.0,110050.0,0.05476703]
[1748374955406,1.74395999,110060.0,110050.0,0.05476703]
[1748374957602,0.94975361,110060.0,110050.0,0.05476703]
[1748374957802,1.74127999,110060.0,110050.0,0.05476703]
[1748374958302,0.94975361,110060.0,110050.0,0.0363]
[1748374958508,1.74115999,110060.0,110050.0,0.05477592]
[1748374959115,1.49275361,110060.0,110050.0,0.05477592]
[1748374959303,1.74115999,110060.0,110050.0,0.05477592]
[1748374959816,1.74115999,110060.0,110050.0,0.08647592]
[1748374962811,1.74115999,110060.0,110050.0,0.08649043]
[1748374963808,0.94975361,110060.0,110050.0,0.08649043]
[1748374963999,1.73999999,110060.0,110050.0,0.08649043]
[1748374964198,1.73999999,110060.0,110050.0,0.11739043]
[1748374964403,1.74011999,110060.0,110050.0,0.11739043]
[1748374966812,1.74011999,110060.0,110050.0,0.14353351]
[1748374967009,1.19827999,110060.0,110050.0,0.14356286]
[1748374967210,1.73955999,110060.0,110050.0,0.14356286]
[1748374968410,1.73931999,110060.0,110050.0,0.14356286]
[1748374969014,1.05787361,110060.0,110050.0,0.14356286]
[1748374969197,1.73915999,110060.0,110050.0,0.18284065]
[1748374969511,1.73915999,110060.0,110050.0,0.22284065]
[1748374970097,1.19827999,110060.0,110050.0,0.22284065]
[1748374970300,1.73895999,110060.0,110050.0,0.22284065]
[1748374971110,1.05787361,110060.0,110050.0,0.03934013]
[1748374971410,1.73867999,110060.0,110050.0,0.22098793]
[1748374971615,1.73879999,110060.0,110050.0,0.03934013]
[1748374972515,1.73879999,110060.0,110050.0,0.22098783]
[1748374973109,1.73879999,110060.0,110050.0,0.03934013]
[1748374974416,1.73879999,110060.0,110050.0,0.13414013]
[1748374978222,1.73879999,110060.0,110050.0,0.0638]
[1748374978412,1.77069999,110060.0,110050.0,0.0638]
[1748374980019,1.77069999,110060.0,110050.0,0.033]
[1748374980725,0.181648,110050.0,110040.0,0.11409069]
[1748374981021,1.17175438,110050.0,110040.0,0.23699069]
[1748374982916,1.17175438,110050.0,110040.0,0.23899069]
[1748374983118,1.17175438,110050.0,110040.0,0.24099069]
[1748374983819,1.17175438,110050.0,110040.0,0.21059069]
[1748374985817,0.81537669,110050.0,110040.0,0.21059069]
[1748374986016,1.17617669,110050.0,110040.0,0.21059069]
[1748374988819,1.17617669,110050.0,110040.0,0.14659069]
[1748374989126,2.37635994,110050.0,110040.0,0.01981656]
[1748374989327,2.55157135,110050.0,110040.0,0.01981656]
[1748374990129,2.55157135,110050.0,110040.0,6e-08]
[1748374990632,2.46069935,110050.0,110040.0,6e-08]
[1748374991313,2.46069935,110050.0,110030.0,0.01994113]
[1748374991314,0.1816646,110040.0,110030.0,0.01994113]
[1748374991519,0.1816976,110020.0,110010.0,0.09206799]
[1748374991719,3.05642398,110020.0,110010.0,0.03961356]
[1748374992031,3.15162398,110020.0,110010.0,0.03961356]
[1748374992333,0.1817141,110010.0,110000.0,0.04772535]
[1748374992518,1.18402048,110010.0,110000.0,0.10786161]
[1748374992712,1.18402048,110010.0,110000.0,0.10798161]
[1748374992928,1.18402048,110010.0,110000.0,0.09431985]
[1748374994023,1.18402048,110010.0,110000.0,0.09931985]
[1748374995536,1.18402048,110010.0,110000.0,0.1182157]
[1748374997530,1.18402048,110010.0,110000.0,0.07161985]
[1748375001122,1.18844279,110010.0,110000.0,0.07161985]
[1748375001727,1.43684917,110010.0,110000.0,0.07161985]
[1748375001930,0.1817306,110000.0,109990.0,0.02905057]
[1748375002120,0.1817306,110000.0,109980.0,0.0013637]
[1748375002121,0.1817471,109990.0,109980.0,0.0013637]
[1748375002326,1.22395348,109990.0,109980.0,0.01431612]
[1748375002628,1.22395348,109990.0,109970.0,0.0018693]
[1748375002629,0.1817637,109980.0,109970.0,0.0018693]
[1748375002830,1.75733008,109980.0,109970.0,0.0018693]
[1748375003034,1.75733008,109980.0,109970.0,0.0019893]
[1748375003828,1.75733008,109980.0,109970.0,0.0018693]
[1748375004025,1.75733008,109980.0,109970.0,0.0019893]
[1748375004337,1.75733008,109980.0,109970.0,0.0079893]
[1748375004531,1.75733008,109980.0,109950.0,0.27314126]
[1748375004532,0.1817967,109960.0,109950.0,0.27314126]
[1748375004832,0.1817967,109960.0,109950.0,0.34768846]
[1748375004833,1.27312308,109960.0,109950.0,0.34768846]
[1748375005037,1.33522308,109960.0,109950.0,0.34768846]
[1748375005329,1.33522308,109960.0,109950.0,0.34780846]
[1748375006034,1.33622308,109960.0,109950.0,0.35580846]
[1748375006225,1.33622308,109960.0,109950.0,0.16872456]
[1748375006541,1.0878167,109960.0,109950.0,0.35053206]
[1748375006723,1.0888167,109960.0,109950.0,0.35753206]
[1748375007034,0.5558967,109960.0,109950.0,0.35753206]
[1748375007233,0.3436,109960.0,109950.0,1.00673844]
[1748375007431,1.0262367,109960.0,109950.0,1.00673844]
[1748375007730,0.4937967,109960.0,109950.0,1.02833844]
[1748375008040,1.0262767,109960.0,109950.0,1.02833844]
[1748375008240,1.0570767,109960.0,109950.0,1.02833844]
[1748375008531,1.0569967,109960.0,109950.0,1.02833844]
[1748375008732,1.0261967,109960.0,109950.0,0.77993206]
[1748375009139,1.0261167,109960.0,109950.0,0.77993206]
[1748375010128,1.0261167,109960.0,109950.0,0.79809173]
[1748375010129,1.0585167,109960.0,109950.0,0.79809173]
[1748375010723,1.0585167,109960.0,109950.0,0.43729173]
[1748375010724,1.0905167,109960.0,109950.0,0.43729173]
[1748375011034,1.0905167,109960.0,109950.0,0.79809173]
[1748375011236,0.6309967,109960.0,109950.0,0.79809173]
[1748375011533,1.0583167,109960.0,109950.0,0.79809173]
[1748375011740,0.4937967,109960.0,109950.0,0.79809173]
[1748375012034,1.0237967,109960.0,109950.0,0.79809173]
[1748375012725,1.0217967,109960.0,109950.0,0.78709173]
[1748375012927,1.0217967,109960.0,109950.0,0.78909173]
[1748375013840,1.0217967,109960.0,109950.0,0.76881206]
[1748375014131,1.0543767,109960.0,109950.0,0.91372381]
[1748375014440,1.0543767,109960.0,109950.0,0.91472381]
[1748375014626,1.0543767,109960.0,109950.0,0.92764601]
[1748375016026,1.33538308,109960.0,109950.0,0.43651731]
[1748375016343,1.33980539,109960.0,109950.0,0.83687209]
[1748375016634,1.33980539,109960.0,109950.0,0.83685035]
[1748375017027,1.09139901,109960.0,109950.0,0.83685035]
[1748375017628,0.31442231,109960.0,109950.0,1.17620473]
[1748375017835,0.43110231,109960.0,109950.0,1.13680808]